bitfinex/quotes_BTCUSD_20230117
["timestamp","ask_amount","ask_price","bid_price","bid_amount"]
[1673950080007,0.071,21144.0,21142.0,0.3]
[1673950080466,0.9200198,21143.0,21141.0,0.01832112]
[1673950080687,0.321803,21142.0,21141.0,0.01832112]
[1673950080908,0.087,21144.0,21141.0,0.09661019]
[1673950081129,0.087,21144.0,21141.0,0.01942019]
[1673950081311,0.087,21144.0,21141.0,0.01832112]
[1673950081535,0.72920598,21147.0,21141.0,0.01832112]
[1673950081835,0.088,21144.0,21142.0,0.19072595]
[1673950082087,0.69035169,21146.0,21141.0,0.01832112]
[1673950082330,0.088,21144.0,21141.0,0.01832112]
[1673950082579,0.321803,21143.0,21141.0,0.31832112]
[1673950082829,0.321803,21142.0,21141.0,0.31832112]
[1673950083101,0.56520169,21144.0,21141.0,0.31832112]
[1673950083102,0.47720169,21144.0,21141.0,0.31832112]
[1673950083353,0.00035954,21143.0,21141.0,0.01832112]
[1673950083599,0.321803,21142.0,21141.0,0.01832112]
[1673950083819,0.08835954,21143.0,21141.0,0.01832112]
[1673950084300,0.321803,21142.0,21141.0,0.01832112]
[1673950084813,0.00035954,21143.0,21141.0,0.01832112]
[1673950085308,0.15567583,21143.0,21141.0,0.01832112]
[1673950085562,0.321803,21142.0,21141.0,0.01832112]
[1673950085806,0.409803,21142.0,21141.0,0.01832112]
[1673950086016,0.561803,21142.0,21141.0,0.01832112]
[1673950086263,0.24,21142.0,21141.0,0.01832112]
[1673950086508,0.561803,21142.0,21141.0,0.01832112]
[1673950086756,0.649803,21142.0,21141.0,0.01832112]
[1673950087540,0.328,21142.0,21141.0,0.01942019]
[1673950087797,0.328,21142.0,21141.0,0.31942019]
[1673950088284,0.328,21142.0,21141.0,0.79243419]
[1673950088532,0.328,21142.0,21141.0,0.79133512]
[1673950088773,0.328,21142.0,21141.0,1.41654912]
[1673950089013,0.328,21142.0,21141.0,1.54237812]
[1673950090980,0.24,21142.0,21141.0,1.54237812]
[1673950091449,0.24,21142.0,21141.0,1.54337812]
[1673950091450,0.315,21142.0,21141.0,1.54337812]
[1673950092418,0.14139275,21150.0,21141.0,2.43684008]
[1673950092666,0.49436108,21151.0,21149.0,0.0753]
[1673950092909,0.49472062,21151.0,21150.0,0.19072595]
[1673950093182,0.49436108,21151.0,21150.0,0.19072595]
[1673950093429,0.49436108,21151.0,21148.0,0.472856]
[1673950093694,0.49436108,21151.0,21147.0,0.548968]
[1673950093919,0.00035954,21150.0,21147.0,0.73969395]
[1673950094162,0.00035954,21150.0,21147.0,0.548968]
[1673950094402,0.49436108,21151.0,21147.0,0.548968]
[1673950094403,0.49436108,21151.0,21148.0,0.3]
[1673950094682,0.49436108,21151.0,21148.0,0.772856]
[1673950094900,0.00035954,21150.0,21148.0,0.772856]
[1673950095133,0.49436108,21151.0,21148.0,0.772856]
[1673950095638,0.49436108,21151.0,21148.0,0.784856]
[1673950095877,0.00035954,21150.0,21148.0,0.472856]
[1673950096839,0.49436108,21151.0,21148.0,0.472856]
[1673950097083,0.49436108,21151.0,21149.0,0.3756]
[1673950097390,0.04099408,21151.0,21150.0,0.0761]
[1673950097652,0.1639,21150.0,21149.0,0.772825]
[1673950097911,0.1639,21150.0,21149.0,0.848925]
[1673950098708,0.1639,21150.0,21149.0,0.854925]
[1673950098957,0.1639,21150.0,21149.0,0.848925]
[1673950099777,0.1859,21150.0,21149.0,1.32776]
[1673950101130,0.1859,21150.0,21149.0,1.453519]
[1673950101384,0.1859,21150.0,21149.0,1.32776]
[1673950102732,0.18625954,21150.0,21149.0,1.02776]
[1673950102987,0.1859,21150.0,21149.0,1.32776]
[1673950104869,0.1859,21150.0,21149.0,1.529619]
[1673950108761,0.1859,21150.0,21149.0,1.96090512]
[1673950110547,0.18625954,21150.0,21149.0,0.0821]
[1673950110809,0.50806254,21150.0,21149.0,0.006]
[1673950111366,0.507703,21150.0,21149.0,0.006]
[1673950111628,0.50806254,21150.0,21149.0,0.006]
[1673950115556,0.507703,21150.0,21149.0,0.006]
[1673950116620,1.45771769,21150.0,21149.0,0.006]
[1673950118662,0.98490469,21150.0,21149.0,0.00592822]
[1673950118913,0.98526423,21150.0,21149.0,0.00592822]
[1673950121747,1.45807723,21150.0,21149.0,0.00592822]
[1673950122248,1.59946998,21150.0,21149.0,0.00592822]
[1673950123803,1.59911044,21150.0,21149.0,0.00592822]
[1673950124057,1.45771769,21150.0,21149.0,0.00592822]
[1673950125329,1.43571769,21150.0,21146.0,0.3]
[1673950125608,1.19991469,21150.0,21149.0,0.001]
[1673950125884,1.57711044,21150.0,21146.0,0.772902]
[1673950126106,1.34130744,21150.0,21149.0,0.001]
[1673950126355,1.66311044,21150.0,21149.0,0.001]
[1673950126893,1.57711044,21150.0,21146.0,0.472902]
[1673950127161,0.321803,21149.0,21146.0,0.472902]
[1673950127428,1.11391469,21150.0,21146.0,0.472902]
[1673950127684,1.46739657,21150.0,21146.0,0.472902]
[1673950127949,0.321803,21149.0,21146.0,0.473902]
[1673950128257,0.321803,21148.0,21146.0,0.472902]
[1673950128561,0.078,21149.0,21146.0,0.473902]
[1673950128813,1.25530744,21150.0,21146.0,0.472902]
[1673950129038,1.33330744,21150.0,21146.0,0.66462795]
[1673950129343,1.25530744,21150.0,21146.0,0.66362795]
[1673950129626,0.078,21148.0,21146.0,0.74072795]
[1673950129948,0.14139275,21149.0,21146.0,0.472902]
[1673950130205,0.14175229,21149.0,21146.0,0.472902]
[1673950130478,0.321803,21148.0,21146.0,0.472902]
[1673950130736,0.14139275,21149.0,21146.0,0.472902]
[1673950131440,0.32216254,21148.0,21146.0,0.472902]
[1673950131662,0.321803,21147.0,21146.0,0.473902]
[1673950131925,0.14139275,21149.0,21146.0,0.773902]
[1673950132178,0.14139275,21149.0,21146.0,0.472902]
[1673950132438,0.21939275,21149.0,21147.0,0.3]
[1673950132709,0.078,21149.0,21146.0,0.473902]
[1673950132982,0.321803,21148.0,21146.0,0.473902]
[1673950133234,0.14139275,21149.0,21146.0,0.945804]
[1673950133509,0.21939275,21149.0,21147.0,0.001]
[1673950133776,0.32216254,21148.0,21147.0,0.001]
[1673950134534,0.321803,21148.0,21147.0,0.001]
[1673950134803,0.078,21149.0,21147.0,0.001]
[1673950135306,0.321803,21148.0,21147.0,0.001]
[1673950136081,0.32216254,21148.0,21146.0,0.472902]
[1673950136387,0.44417238,21149.0,21146.0,0.472902]
[1673950136804,0.58556513,21149.0,21147.0,0.001]
[1673950136806,0.078,21148.0,21147.0,0.001]
[1673950137023,0.078,21148.0,21147.0,0.3]
[1673950137573,0.44417238,21149.0,21147.0,0.3]
[1673950137831,0.078,21149.0,21147.0,0.96360395]
[1673950138091,0.1639,21150.0,21147.0,1.245758]
[1673950138373,0.078,21148.0,21147.0,1.246758]
[1673950138924,0.078,21148.0,21147.0,1.372532]
[1673950139714,0.1639,21150.0,21147.0,1.245758]
[1673950139991,0.078,21149.0,21147.0,1.246758]
[1673950140264,0.1639,21150.0,21147.0,1.245758]
[1673950140522,0.078,21148.0,21147.0,1.246758]
[1673950140775,0.1639,21150.0,21147.0,1.245758]
[1673950141037,0.2419,21150.0,21147.0,1.246758]
[1673950141559,0.67528488,21149.0,21147.0,0.00091739]
[1673950141566,1.14558491,21149.0,21147.0,0.00091739]
[1673950141815,0.321803,21148.0,21147.0,0.00091739]
[1673950142068,0.46319575,21148.0,21147.0,0.00091739]
[1673950142333,0.94039744,21148.0,21147.0,0.00091739]
[1673950142636,2.17930419,21148.0,21143.0,0.472963]
[1673950142850,0.0761,21145.0,21143.0,0.472963]
[1673950143112,0.321803,21144.0,21143.0,0.472963]
[1673950143366,0.0761,21145.0,21143.0,0.472963]
[1673950144007,0.0851,21145.0,21143.0,0.485963]
[1673950144276,0.08545954,21145.0,21143.0,0.485963]
[1673950145033,0.08545954,21145.0,21143.0,0.48602801]
[1673950145311,0.009,21145.0,21143.0,0.48602801]
[1673950146599,0.00935954,21145.0,21143.0,0.48602801]
[1673950146814,0.00935954,21145.0,21143.0,0.485963]
[1673950147082,0.009,21145.0,21143.0,0.485963]
[1673950147817,0.00935954,21145.0,21143.0,0.485963]
[1673950148541,0.009,21145.0,21143.0,0.485963]
[1673950150515,0.009,21145.0,21144.0,6.501e-05]
[1673950150750,0.009,21145.0,21144.0,0.30006501]
[1673950151257,0.35385998,21148.0,21144.0,1.71303923]
[1673950151500,0.61148448,21149.0,21146.0,0.0761]
[1673950151838,0.61148448,21149.0,21147.0,6.5e-05]
[1673950152074,0.14154399,21148.0,21147.0,6.5e-05]
[1673950152571,0.14154399,21148.0,21146.0,0.772898]
[1673950152840,0.14154399,21148.0,21147.0,6.5e-05]
[1673950153312,0.14154399,21148.0,21146.0,0.472898]
[1673950153798,0.35385998,21148.0,21146.0,0.472898]
[1673950154051,0.321803,21147.0,21146.0,0.472898]
[1673950154297,0.43185998,21148.0,21146.0,0.472898]
[1673950154554,0.14154399,21147.0,21145.0,0.472905]
[1673950154797,0.35385998,21148.0,21145.0,0.47297]
[1673950155040,0.43185998,21148.0,21146.0,0.001]
[1673950155781,0.35385998,21148.0,21145.0,0.47297]
[1673950156028,0.43185998,21148.0,21145.0,0.47397]
[1673950156277,0.14154399,21147.0,21145.0,0.47397]
[1673950157517,0.14154399,21147.0,21145.0,0.47297]
[1673950157805,0.14154399,21147.0,21146.0,0.001]
[1673950158022,0.14154399,21147.0,21145.0,0.47297]
[1673950158233,0.21954399,21147.0,21145.0,0.47397]
[1673950159962,0.06075399,21147.0,21145.0,0.47397]
[1673950161344,0.06075399,21147.0,21145.0,0.001]
[1673950161578,0.321803,21146.0,21145.0,0.001]
[1673950161799,0.321803,21146.0,21143.0,0.49145169]
[1673950161989,0.321803,21145.0,21143.0,0.472952]
[1673950162264,1.09540194,21147.0,21143.0,0.472952]
[1673950162487,1.03464795,21147.0,21143.0,0.472952]
[1673950162707,0.321803,21146.0,21143.0,0.472952]
[1673950162923,0.321803,21145.0,21143.0,0.489952]
[1673950163165,0.75186245,21147.0,21143.0,0.472952]
[1673950163386,0.00035954,21146.0,21143.0,0.66667795]
[1673950163610,0.321803,21145.0,21143.0,0.475952]
[1673950163834,0.321803,21144.0,21143.0,0.475952]
[1673950163979,0.00035954,21146.0,21143.0,0.475952]
[1673950164211,0.00035954,21146.0,21144.0,0.00130043]
[1673950164425,0.00035954,21146.0,21143.0,0.475952]
[1673950164649,0.321803,21145.0,21143.0,0.472952]
[1673950164864,0.21467553,21146.0,21143.0,0.489952]
[1673950165089,0.00235954,21146.0,21143.0,0.489952]
[1673950165749,0.21467553,21146.0,21143.0,0.489952]
[1673950165968,0.00235954,21146.0,21143.0,0.489952]
[1673950166623,0.21467553,21146.0,21144.0,0.00130043]
[1673950166828,0.321803,21145.0,21143.0,0.489952]
[1673950167115,0.21467553,21146.0,21143.0,0.489952]
[1673950167366,0.1511,21144.0,21143.0,0.017]
[1673950167596,1.42305169,21144.0,21143.0,0.017]
[1673950167811,2.10831468,21144.0,21142.0,0.77820562]
[1673950168049,0.87510469,21143.0,21142.0,0.77820562]
[1673950168251,1.34807369,21143.0,21142.0,0.77820562]
[1673950168709,2.03335868,21143.0,21142.0,0.77820562]
[1673950168918,2.31614418,21143.0,21142.0,0.77820562]
[1673950169153,2.38114418,21143.0,21142.0,0.78020562]
[1673950169387,0.79900469,21143.0,21142.0,0.77820562]
[1673950169616,0.387803,21143.0,21142.0,0.78020562]
[1673950170502,0.74164576,21143.0,21142.0,0.78020562]
[1673950170731,0.52932977,21143.0,21142.0,0.78020562]
[1673950171185,0.387803,21143.0,21142.0,0.78020562]
[1673950171405,0.38816254,21143.0,21142.0,0.78020562]
[1673950171865,0.52968931,21143.0,21142.0,0.78020562]
[1673950172071,2.18770869,21143.0,21142.0,0.78020562]
[1673950172312,2.40002468,21143.0,21142.0,0.78020562]
[1673950172564,2.05511837,21143.0,21142.0,0.78020562]
[1673950173008,2.26743436,21143.0,21142.0,0.78020562]
[1673950173450,2.05511837,21143.0,21142.0,0.78020562]
[1673950173897,1.98911837,21143.0,21142.0,0.77820562]
[1673950174112,2.07811837,21143.0,21142.0,0.77820562]
[1673950174338,0.62772977,21143.0,21142.0,0.96893157]
[1673950174557,0.089,21143.0,21142.0,0.96893157]
[1673950174909,0.089,21143.0,21142.0,1.62729762]
[1673950175306,0.089,21143.0,21142.0,2.10028962]
[1673950175766,0.089,21143.0,21142.0,2.22611062]
[1673950176420,0.67489376,21148.0,21142.0,2.22611062]
[1673950176634,0.14152677,21147.0,21143.0,0.19072595]
[1673950176851,0.00035954,21146.0,21143.0,0.66368795]
[1673950177076,0.00035954,21146.0,21143.0,0.472962]
[1673950177317,0.14152677,21147.0,21144.0,0.00130043]
[1673950177745,0.32216254,21146.0,21144.0,0.00130043]
[1673950177971,0.321803,21145.0,21144.0,0.00130043]
[1673950178198,0.35384276,21147.0,21144.0,0.00130043]
[1673950178418,0.14152677,21147.0,21144.0,0.00130043]
[1673950178639,0.321803,21146.0,21144.0,0.00130043]
[1673950178861,0.35384276,21147.0,21144.0,0.00130043]
[1673950179081,0.46332977,21146.0,21144.0,0.00130043]
[1673950179300,0.321803,21145.0,21144.0,6.503e-05]
[1673950179517,0.14152677,21146.0,21144.0,0.00106503]
[1673950179974,0.321803,21145.0,21144.0,0.00106503]
[1673950180191,0.14152677,21146.0,21144.0,6.503e-05]
[1673950180192,0.1,21146.0,21144.0,6.503e-05]
[1673950180402,0.24188631,21146.0,21144.0,6.503e-05]
[1673950180617,0.321803,21145.0,21144.0,6.503e-05]
[1673950181107,0.321803,21145.0,21143.0,0.472962]
[1673950181296,0.24035954,21146.0,21143.0,0.472962]
[1673950181505,0.83764237,21146.0,21142.0,0.472973]
[1673950181723,0.321803,21145.0,21142.0,0.472973]
[1673950181939,0.14152677,21145.0,21142.0,0.472973]
[1673950182170,0.83728283,21146.0,21142.0,0.945965]
[1673950182459,0.00035954,21145.0,21143.0,0.001]
[1673950182674,0.321803,21144.0,21142.0,0.472992]
[1673950182888,0.078,21145.0,21142.0,0.473992]
[1673950183121,0.83728283,21146.0,21142.0,0.472992]
[1673950183340,1.04959882,21146.0,21142.0,1.13670995]
[1673950183578,0.321803,21145.0,21142.0,1.13670995]
[1673950183782,0.69575606,21146.0,21143.0,0.3]
[1673950183995,0.69575606,21146.0,21143.0,0.772969]
[1673950184214,1.13959882,21146.0,21143.0,0.772969]
[1673950184454,0.321803,21145.0,21143.0,0.772969]
[1673950184654,0.09,21145.0,21143.0,0.772969]
[1673950184891,0.83728283,21146.0,21143.0,0.772969]
[1673950185112,1.04959882,21146.0,21143.0,0.472969]
[1673950185333,0.321803,21145.0,21143.0,0.472969]
[1673950185562,0.321803,21144.0,21143.0,0.472969]
[1673950185772,0.09,21145.0,21143.0,0.472969]
[1673950185999,1.04959882,21146.0,21143.0,0.472969]
[1673950186241,0.32216254,21145.0,21142.0,0.472992]
[1673950186458,0.321803,21144.0,21142.0,0.472992]
[1673950186688,0.00035954,21145.0,21142.0,0.472992]
[1673950186908,1.04959882,21146.0,21143.0,0.0013005]
[1673950187128,0.14152677,21145.0,21143.0,0.0013005]
[1673950187351,0.321803,21144.0,21142.0,0.472992]
[1673950187666,0.321803,21143.0,21142.0,0.472992]
[1673950187923,0.14188631,21145.0,21141.0,0.84290277]
[1673950188177,0.14188631,21145.0,21142.0,0.00130056]
[1673950188428,0.14152677,21145.0,21142.0,0.00130056]
[1673950188686,0.09,21144.0,21142.0,0.00130056]
[1673950188948,0.14152677,21145.0,21142.0,0.00130056]
[1673950189239,0.23152677,21145.0,21142.0,0.00130056]
[1673950189769,0.32152677,21145.0,21142.0,0.47428456]
[1673950190087,0.18,21145.0,21142.0,0.47428456]
[1673950190336,0.00035954,21144.0,21142.0,0.47428456]
[1673950190563,0.32152677,21145.0,21142.0,0.00130056]
[1673950191106,0.321803,21144.0,21142.0,0.00130056]
[1673950191393,0.321803,21143.0,21142.0,0.00130056]
[1673950191658,0.321803,21143.0,21141.0,0.84289977]
[1673950191659,0.46332977,21143.0,21141.0,0.01832112]
[1673950191934,0.321803,21142.0,21141.0,0.01832112]
[1673950192190,0.7819912,21142.0,21141.0,0.01832112]
[1673950193305,0.8729912,21142.0,21141.0,0.01832112]
[1673950194643,1.01451797,21142.0,21141.0,0.01832112]
[1673950195185,0.8729912,21142.0,21141.0,0.01832112]
[1673950195477,0.5511882,21142.0,21141.0,0.01832112]
[1673950195748,0.69271497,21142.0,21141.0,0.01832112]
[1673950196011,1.01451797,21142.0,21141.0,0.01832112]
[1673950196518,0.92351797,21142.0,21141.0,0.01832112]
[1673950196771,1.01451797,21142.0,21141.0,0.01832112]
[1673950197077,0.69271497,21142.0,21141.0,0.01832112]
[1673950197330,0.92351797,21142.0,21141.0,0.01832112]
[1673950197853,1.01451797,21142.0,21141.0,0.01832112]
[1673950198159,0.8729912,21142.0,21141.0,0.01832112]
[1673950198423,0.091,21142.0,21141.0,0.09551112]
[1673950198940,0.091,21142.0,21141.0,0.49133512]
[1673950199198,0.091,21142.0,21141.0,0.79133512]
[1673950199775,0.82678176,21145.0,21141.0,0.79133512]
[1673950199992,0.091,21142.0,21141.0,0.98206107]
[1673950200202,0.091,21142.0,21141.0,0.49140014]
[1673950200415,0.091,21142.0,21141.0,0.79140014]
[1673950200634,0.091,21142.0,21141.0,0.49140014]
[1673950201336,0.091,21142.0,21141.0,0.79140014]
[1673950202871,0.14152677,21145.0,21141.0,1.26441414]
[1673950203139,0.091,21142.0,21141.0,1.45514009]
[1673950203620,0.091,21142.0,21141.0,1.26441414]
[1673950207640,0.091,21142.0,21141.0,0.96434912]
[1673950207893,0.091,21142.0,21141.0,1.26434912]
[1673950208402,0.091,21142.0,21141.0,0.96434912]
[1673950208690,0.091,21142.0,21141.0,1.26434912]
[1673950208952,0.091,21142.0,21141.0,1.39017812]
[1673950210533,0.091,21142.0,21141.0,1.26434912]
[1673950211055,0.091,21142.0,21141.0,1.26441414]
[1673950212712,0.091,21142.0,21141.0,1.39024314]
[1673950214183,0.091,21142.0,21141.0,1.26441414]
[1673950214701,0.091,21142.0,21141.0,1.88576923]
[1673950214951,0.091,21142.0,21141.0,1.97237228]
[1673950215214,0.091,21142.0,21141.0,2.49976657]
[1673950215485,0.091,21142.0,21141.0,2.32516899]
[1673950215745,0.091,21142.0,21141.0,2.11349096]
[1673950216011,0.091,21142.0,21141.0,1.97237228]
[1673950216811,0.091,21142.0,21141.0,2.11349096]
[1673950217339,0.091,21142.0,21141.0,1.97237228]
[1673950217600,0.091,21142.0,21141.0,1.72237228]
[1673950219742,0.091,21142.0,21141.0,1.64677228]
[1673950220008,0.091,21142.0,21141.0,1.52094328]
[1673950220292,0.091,21142.0,21141.0,1.66206196]
[1673950220752,0.091,21142.0,21141.0,1.78789096]
[1673950220758,0.091,21142.0,21141.0,1.66206196]
[1673950221020,0.091,21142.0,21141.0,1.52094328]
[1673950221286,0.091,21142.0,21141.0,0.0759]
[1673950221547,0.55432977,21142.0,21140.0,0.01835117]
[1673950221816,0.321803,21141.0,21140.0,0.01835117]
[1673950222106,0.091,21142.0,21140.0,0.01835117]
[1673950222366,0.35384276,21143.0,21140.0,0.01835117]
[1673950222629,0.091,21142.0,21140.0,0.31835117]
[1673950222845,0.321803,21141.0,21140.0,0.01835117]
[1673950223101,0.0085,21141.0,21140.0,0.01835117]
[1673950223365,0.00885954,21141.0,21140.0,0.01835117]
[1673950223618,0.0085,21141.0,21140.0,0.01835117]
[1673950224425,0.091,21141.0,21140.0,0.01835117]
[1673950224640,0.0995,21141.0,21140.0,0.31835117]
[1673950227020,0.0995,21141.0,21140.0,0.01835117]
[1673950227973,0.12842914,21141.0,21140.0,0.01835117]
[1673950228229,0.12842914,21141.0,21140.0,0.31835117]
[1673950228769,0.12842914,21141.0,21140.0,0.01835117]
[1673950230197,0.12842914,21141.0,21140.0,0.31835117]
[1673950231523,0.12842914,21141.0,21140.0,0.79138717]
[1673950231740,0.12842914,21141.0,21140.0,0.93250585]
[1673950231957,0.12842914,21141.0,21140.0,0.79138717]
[1673950232589,0.12842914,21141.0,21140.0,1.26442317]
[1673950233120,0.12842914,21141.0,21140.0,1.48164185]
[1673950233449,0.12842914,21141.0,21140.0,2.13489246]
[1673950235772,0.12842914,21141.0,21140.0,1.6080517]
[1673950236041,0.12842914,21141.0,21140.0,1.09026117]
[1673950236235,0.12842914,21141.0,21140.0,0.96442317]
[1673950236671,0.12842914,21141.0,21140.0,0.96572385]
[1673950237141,0.12842914,21141.0,21140.0,0.96442317]
[1673950237142,0.12878868,21141.0,21140.0,0.96442317]
[1673950237389,0.12842914,21141.0,21140.0,0.96442317]
[1673950237606,0.12842914,21141.0,21140.0,1.26442317]
[1673950237824,0.12842914,21141.0,21140.0,1.26572385]
[1673950240811,0.12878868,21141.0,21140.0,1.26442317]
[1673950241343,0.12842914,21141.0,21140.0,1.26442317]
[1673950242364,0.12842914,21141.0,21140.0,1.2644882]
[1673950243136,0.12842914,21141.0,21140.0,1.4882882]
[1673950243402,0.1283144,21141.0,21140.0,2.01654559]
[1673950243684,0.1283144,21141.0,21140.0,1.6141262]
[1673950243940,0.1283144,21141.0,21140.0,1.4882882]
[1673950244204,0.1283144,21141.0,21140.0,1.6141262]
[1673950244730,0.1283144,21141.0,21140.0,1.75581673]
[1673950244953,0.1283144,21141.0,21140.0,2.00069713]
[1673950245722,0.1283144,21141.0,21140.0,1.75583669]
[1673950245998,0.1283144,21141.0,21140.0,1.62999869]
[1673950247300,0.1283144,21141.0,21140.0,1.87459186]
[1673950247565,0.1283144,21141.0,21140.0,1.62999573]
[1673950247853,0.1283144,21141.0,21140.0,2.01629662]
[1673950248114,0.1283144,21141.0,21140.0,2.14213462]
[1673950248376,0.1283144,21141.0,21140.0,1.96751176]
[1673950248631,0.1283144,21141.0,21140.0,1.84167376]
[1673950248902,0.1283144,21141.0,21140.0,2.14213783]
[1673950249176,0.1283144,21141.0,21140.0,2.26171249]
[1673950249442,0.1283144,21141.0,21140.0,3.02982242]
[1673950249693,0.10016221,21141.0,21140.0,2.39478834]
[1673950250648,0.10016221,21141.0,21140.0,2.74894299]
[1673950250908,0.10016221,21141.0,21140.0,2.67812136]
[1673950251169,0.10016221,21141.0,21140.0,2.39478834]
[1673950251170,0.03742914,21141.0,21140.0,2.39478834]
[1673950251421,0.04042914,21141.0,21140.0,3.09326008]
[1673950251672,0.04042914,21141.0,21140.0,2.80994299]
[1673950252463,0.04042914,21141.0,21140.0,3.09321715]
[1673950253233,0.04042914,21141.0,21140.0,2.80994299]
[1673950253494,0.04078868,21141.0,21140.0,2.36818159]
[1673950253748,0.04078868,21141.0,21140.0,1.99690529]
[1673950253749,0.04042914,21141.0,21140.0,1.99690529]
[1673950254538,0.04042914,21141.0,21140.0,0.69403012]
[1673950254795,0.36223214,21141.0,21140.0,0.55238717]
[1673950255056,0.36223214,21141.0,21140.0,0.07935117]
[1673950255623,0.50411845,21141.0,21140.0,0.07935117]
[1673950255886,0.36223214,21141.0,21140.0,0.07935117]
[1673950256387,0.50111845,21141.0,21140.0,0.01835117]
[1673950256654,0.55811845,21141.0,21140.0,0.02135117]
[1673950257706,0.50111845,21141.0,21140.0,0.01835117]
[1673950257996,0.56275891,21141.0,21140.0,0.02135117]
[1673950258517,0.42123214,21141.0,21140.0,0.02135117]
[1673950258769,0.56275891,21141.0,21140.0,0.02135117]
[1673950259499,0.56275891,21141.0,21140.0,0.01635117]
[1673950259507,0.67365891,21141.0,21140.0,0.01635117]
[1673950259763,1.35849039,21141.0,21140.0,0.01635117]
[1673950260019,0.81491764,21141.0,21140.0,0.01635117]
[1673950260280,1.02738254,21141.0,21140.0,0.01635117]
[1673950260593,3.60864987,21141.0,21140.0,0.01635117]
[1673950260800,3.93316075,21141.0,21140.0,0.01635117]
[1673950261055,3.60864987,21141.0,21140.0,0.01635117]
[1673950261316,2.66233538,21141.0,21140.0,0.01635117]
[1673950261579,2.66269492,21141.0,21140.0,0.01635117]
[1673950261847,3.6090053,21141.0,21140.0,0.01635117]
[1673950262103,1.36344807,21141.0,21140.0,0.01635117]
[1673950262369,1.11617754,21141.0,21140.0,0.01635117]
[1673950262627,1.11653708,21141.0,21140.0,0.01635117]
[1673950262894,1.04043708,21141.0,21140.0,0.01635117]
[1673950263158,1.25290761,21141.0,21140.0,0.01635117]
[1673950263665,1.3940494,21141.0,21140.0,0.01635117]
[1673950264173,1.1112639,21141.0,21140.0,0.01635117]
[1673950264397,1.04038915,21141.0,21140.0,0.01635117]
[1673950265167,1.72587368,21141.0,21140.0,0.01635117]
[1673950265397,1.8670634,21141.0,21140.0,0.01635117]
[1673950265669,1.51340479,21141.0,21140.0,0.01635117]
[1673950265962,1.72587532,21141.0,21140.0,0.01635117]
[1673950266469,1.51340479,21141.0,21140.0,0.01635117]
[1673950266719,1.5842779,21141.0,21140.0,0.01635117]
[1673950267263,1.58391836,21141.0,21140.0,0.01635117]
[1673950267524,1.86670386,21141.0,21140.0,0.01635117]
[1673950268028,1.58391836,21141.0,21140.0,0.01635117]
[1673950268306,1.86670386,21141.0,21140.0,0.01635117]
[1673950268554,1.72545656,21141.0,21140.0,0.01635117]
[1673950270071,1.58391836,21141.0,21140.0,0.01635117]
[1673950270580,1.51298391,21141.0,21140.0,0.01635117]
[1673950270814,2.19882798,21141.0,21140.0,0.01635117]
[1673950271280,2.0572919,21141.0,21140.0,0.01635117]
[1673950271558,3.08121398,21141.0,21140.0,0.01635117]
[1673950271847,0.0908498,21139.0,21138.0,0.01887746]
[1673950272127,2.33985469,21139.0,21138.0,0.01887746]
[1673950272374,2.33985469,21139.0,21137.0,0.01325492]
[1673950272375,3.42457903,21139.0,21137.0,0.01325492]
[1673950272652,2.74237146,21138.0,21137.0,0.01325492]
[1673950272915,1.6615786,21138.0,21137.0,0.01325492]
[1673950273177,2.5077406,21138.0,21137.0,0.01325492]
[1673950273469,2.57307109,21138.0,21137.0,0.01325492]
[1673950273720,0.93755991,21138.0,21137.0,0.01325492]
[1673950273973,0.79576988,21138.0,21137.0,0.01325492]
[1673950274231,0.88776988,21138.0,21137.0,0.01325492]
[1673950274491,0.57446688,21138.0,21137.0,0.01325492]
[1673950274804,0.89626988,21138.0,21137.0,0.01325492]
[1673950275340,0.89626988,21138.0,21137.0,0.01455579]
[1673950275599,0.57446688,21138.0,21137.0,0.01455579]
[1673950275858,0.57446688,21138.0,21137.0,0.01325492]
[1673950276166,0.1005,21138.0,21137.0,0.01325492]
[1673950276435,0.084,21138.0,21137.0,1.03765292]
[1673950276686,0.084,21138.0,21137.0,1.53941692]
[1673950276948,0.084,21138.0,21137.0,1.59683169]
[1673950277174,0.0476598,21139.0,21137.0,1.76996769]
[1673950277474,0.0476598,21139.0,21138.0,0.425858]
[1673950277743,0.0561598,21139.0,21138.0,0.773081]
[1673950278515,0.1321598,21139.0,21138.0,0.898937]
[1673950278810,0.0561598,21139.0,21138.0,1.074337]
[1673950279081,0.1321598,21139.0,21138.0,1.075337]
[1673950279345,0.1236598,21139.0,21138.0,1.15140203]
[1673950280419,0.0476598,21139.0,21138.0,1.15040203]
[1673950280680,0.0561598,21139.0,21138.0,1.05040203]
[1673950281197,0.0561598,21139.0,21138.0,0.47314603]
[1673950281824,0.1261598,21139.0,21138.0,0.475081]
[1673950281898,0.0561598,21139.0,21138.0,0.473081]
[1673950282334,0.0621598,21139.0,21138.0,0.19871837]
[1673950282587,0.0561598,21139.0,21138.0,0.17771837]
[1673950282853,0.3601598,21139.0,21138.0,0.18071837]
[1673950283114,0.2961598,21139.0,21138.0,0.17771837]
[1673950283367,0.3601598,21139.0,21138.0,0.18071837]
[1673950283875,0.3601598,21139.0,21138.0,0.48071837]
[1673950284168,0.3601598,21139.0,21138.0,0.95073434]
[1673950284428,0.3601598,21139.0,21138.0,0.95373434]
[1673950285855,0.3601598,21139.0,21138.0,1.02983434]
[1673950286124,0.3601598,21139.0,21138.0,1.10583434]
[1673950286378,0.3516598,21139.0,21138.0,1.23169034]
[1673950286631,0.18001579,21139.0,21138.0,1.23169034]
[1673950287383,0.18001579,21139.0,21138.0,1.58578847]
[1673950287636,0.18851579,21139.0,21138.0,1.5858535]
[1673950287885,0.18851579,21139.0,21138.0,1.37339832]
[1673950288393,0.12451579,21139.0,21138.0,1.37039832]
[1673950288650,0.12951579,21139.0,21138.0,1.39739832]
[1673950288897,0.12951579,21139.0,21138.0,1.25575537]
[1673950290905,0.12951579,21139.0,21138.0,1.72129955]
[1673950291673,0.12101579,21139.0,21138.0,1.72129955]
[1673950292175,0.10073763,21139.0,21138.0,2.0178189]
[1673950292399,0.10073763,21139.0,21138.0,2.37197355]
[1673950292903,0.10073763,21139.0,21138.0,1.90608846]
[1673950293154,0.10073763,21139.0,21138.0,1.62281387]
[1673950294359,0.10073763,21139.0,21138.0,1.3972071]
[1673950295401,0.10073763,21139.0,21138.0,1.60937789]
[1673950295907,0.10073763,21139.0,21138.0,1.76265891]
[1673950297009,0.10073763,21139.0,21138.0,1.62120718]